[Event "93rd German Championship 2022"]
[Site "Magdeburg"]
[Date "2022.08.16"]
[Round "4.19"]
[White "Tschernatsch, Johannes"]
[Black "Burian, Simon"]
[Result "1/2-1/2"]
[ECO "B52"]
[WhiteElo "2314"]
[BlackElo "2211"]
[Annotator "TA"]
[PlyCount "107"]
[EventDate "2022.08.14"]
[EventType "swiss"]
[EventCountry "GER"]
[SourceTitle "playchess.com"]
[Source "ChessBase"]
[SourceQuality "1"]
[TimeControl "40/5400+30:1800+30"]

{[%evp 13,107,20,20,18,14,12,21,21,17,12,31,7,14,11,51,56,58,47,47,0,0,-5,0,-13,-12,-12,-12,-15,0,0,0,0,0,0,0,0,0,-20,-22,-22,-22,-22,0,-20,0,-31,-5,-38,-38,-55,-34,-55,-55,-55,-55,-55,-55,-161,-32,-45,-20,-17,-30,-25,-21,-31,0,-16,0,0,0,0,0,0,0,0,8,8,8,8,8,8,8,8,8,0,0,0,0,0,0,0,0,0,0,0]} 1. e4 {[%emt 0:00:02]} c5 {[%emt 0:00:14]} 2. Nf3 {[%emt 0:00:05]} d6 {[%emt 0:00:03]} 3. Bb5+ {[%emt 0:00:13]} Bd7 {[%emt 0:00:15]} 4. Bxd7+ {[%emt 0:00:08]} Qxd7 {[%emt 0:00:14]} 5. c4 {[%emt 0:00:33]} e5 {[%emt 0:00:23]} 6. Nc3 {[%emt 0:00:44]} Nc6 {[%emt 0:00:32]} 7. d3 {[%emt 0:00:35]} g6 {[%emt 0:01:25]} 8. a3 {[%emt 0:01:37] B52: Sicilian: Moscow Variation with 3...Bd7.} Bg7 {[%emt 0:00:51]} 9. b4 {[%emt 0:06:44]} Nge7 {[%emt 0:11:13]} 10. Rb1 {[%emt 0:04:19]} O-O {[%emt 0:04:36]} 11. O-O {[%emt 0:01:11]} Nd4 {[%emt 0:06:31] 11...h6 gains popularity.} 12. Bg5 {[%emt 0:07:06]} f6 {[%emt 0:02:00]} 13. Be3 {[%emt 0:00:31] [#]} h6 $146 {[%emt 0:05:25]} ({Predecessor:} 13... b6 14. Kh1 f5 15. Bg5 Nec6 16. exf5 Nxf5 17. Nd2 h6 18. Be3 cxb4 19. axb4 Nce7 {½-½ (40) Niewiadomski,W (2432)-De la Rosa Solorzano,J (2426) ICCF email 2020}) 14. bxc5 {[%emt 0:06:50]} dxc5 {[%emt 0:00:18]} 15. Bxd4 {[%emt 0:00:07]} (15. Nd5 {with more complications.} b6 16. Bxd4 cxd4 17. a4) 15... cxd4 {[%emt 0:02:02]} 16. Na4 {[%emt 0:00:37]} (16. Nd5 $14) 16... b6 {[%emt 0:08:45]} 17. Qb3 {[%emt 0:04:11]} Qe6 {[%emt 0:04:13]} 18. c5 {[%emt 0:00:58]} Qxb3 {[%emt 0:00:20]} 19. Rxb3 {[%emt 0:00:05]} bxc5 {[%emt 0:00:08]} 20. Nd2 {[%emt 0:07:23]} Rab8 {[%emt 0:03:10]} 21. Rfb1 {[%emt 0:04:48]} Nc6 {[%emt 0:00:22]} 22. Nxc5 {[%emt 0:01:48] Pair of Knights!} Rxb3 {[%emt 0:00:12]} 23. Rxb3 {[%emt 0:01:20]} Rb8 {[%emt 0:00:09]} 24. Rxb8+ {[%emt 0:02:00]} Nxb8 $11 {[%emt 0:00:17][%mdl 4096] Endgame KBN-KNN} 25. Ncb3 {[%emt 0:05:14]} Bf8 {[%emt 0:01:35]} 26. Nc4 {[%emt 0:00:15]} Kf7 {[%emt 0:03:47]} 27. Kf1 {[%emt 0:00:37]} Ke6 {[%emt 0:00:42]} 28. Ke2 {[%emt 0:00:14]} Na6 {[%emt 0:02:07]} 29. Kd2 {[%emt 0:00:39][%cal Of2f4]} h5 {[%emt 0:03:22]} 30. Kc2 {[%emt 0:02:28][%cal Of2f4]} (30. f4 $5) 30... g5 {[%emt 0:01:24]} 31. h3 {[%emt 0:05:41]} Kd7 {[%emt 0:00:45]} 32. Nbd2 {[%emt 0:01:53]} Nc5 {[%emt 0:05:07]} 33. Nf1 {[%emt 0:02:13]} Ne6 {[%emt 0:02:50] aiming for ...Nf4.} 34. g3 {[%emt 0:00:48] Against Nf4} Kc6 {[%emt 0:05:03]} 35. h4 {[%emt 0:01:35]} (35. Nh2 $15) 35... g4 {[%emt 0:02:14]} (35... gxh4 $19 {White must now prevent ...h3.} 36. gxh4 Nf4) 36. Nh2 {[%emt 0:05:19]} Nc5 {[%emt 0:02:42]} 37. f3 {[%emt 0:02:25]} gxf3 {[%emt 0:00:07]} 38. Nxf3 {[%emt 0:00:06]} Kb5 {[%emt 0:00:43][%cal Oc5e4]} 39. Nb2 {[%emt 0:00:30]} Na4 {[%emt 0:00:30]} 40. Nh2 {[%emt 0:08:39] The position is equal.} Nxb2 {[%emt 0:05:49]} ({Resist} 40... Bxa3 41. Nxa4 Kxa4 42. g4 hxg4 43. Nxg4) 41. Kxb2 {[%emt 0:30:13] [#] And now g4 would win. KB-KN} Ka4 {[%emt 0:30:30]} 42. g4 {[%emt 0:00:30]} Bxa3+ {[%emt 0:00:16]} 43. Kc2 {[%emt 0:00:34]} hxg4 {[%emt 0:00:14]} 44. Nxg4 {[%emt 0:00:21] Hoping for h5.} Be7 {[%emt 0:04:47]} 45. h5 {[%emt 0:00:57] [#] Threatens to win with Nh6.} Kb4 {[%emt 0:03:41]} 46. Nh6 {[%emt 0:02:42]} a5 {[%emt 0:00:18]} 47. Ng8 {[%emt 0:00:46]} Bf8 {[%emt 0:00:10]} 48. Nxf6 {[%emt 0:01:14]} a4 {[%emt 0:00:21]} 49. Nd5+ {[%emt 0:03:29]} Kb5 {[%emt 0:00:00]} 50. Kb2 {[%emt 0:00:30]} Bg7 {[%emt 0:00:28]} 51. Ka2 {[%emt 0:00:30]} Ka5 {[%emt 0:00:30]} 52. Ka3 {[%emt 0:00:30]} Bf8+ {[%emt 0:02:40]} 53. Ka2 {[%emt 0:04:02]} Bg7 {[%emt 0:00:00]} 54. Ne7 {[%emt 0:00:00] Weighted Error Value: White=0.10 (very precise) /Black=0.10 (very precise)} 1/2-1/2

[Event "93rd German Championship 2022"]
[Site "Magdeburg"]
[Date "2022.08.16"]
[Round "4.20"]
[White "Bracker, Arne"]
[Black "Becker, Stefan"]
[Result "1-0"]
[ECO "B42"]
[WhiteElo "2295"]
[BlackElo "2101"]
[Annotator "TA"]
[PlyCount "67"]
[EventDate "2022.08.14"]
[EventType "swiss"]
[EventCountry "GER"]
[SourceTitle "playchess.com"]
[Source "ChessBase"]
[SourceQuality "1"]
[TimeControl "40/5400+30:1800+30"]

{[%evp 15,67,31,48,52,45,18,41,44,44,52,48,42,39,34,25,0,31,27,31,30,25,24,22,0,0,0,0,0,0,0,0,0,0,0,0,0,0,0,0,0,0,-27,29,22,131,142,277,0,0,0,424,347,29989,29990]} 1. e4 {[%emt 0:05:03]} c5 {[%emt 0:00:30]} 2. Nf3 {[%emt 0:00:28]} e6 {[%emt 0:00:08]} 3. d4 {[%emt 0:00:08]} cxd4 {[%emt 0:00:05]} 4. Nxd4 {[%emt 0:00:05]} a6 {[%emt 0:00:06]} 5. Bd3 {[%emt 0:00:13]} Nf6 {[%emt 0:00:08]} 6. O-O {[%emt 0:00:48]} Qc7 {[%emt 0:00:05]} 7. Qe2 {[%emt 0:00:15]} d6 {[%emt 0:00:10]} 8. f4 {[%emt 0:00:43][%cal Bf2f4,Bf4f5][%mdl 32]} g6 {[%emt 0:00:33]} 9. f5 {[%emt 0:00:54] Hoping for fxe6. B42: Sicilian: Kan Variation: 5 Bd3.} Bg7 {[%emt 0:00:08]} 10. Bg5 {[%emt 0:00:11]} O-O {[%emt 0:00:18]} 11. Nd2 {[%emt 0:03:20] White is slightly better.} exf5 {[%emt 0:06:50]} 12. exf5 {[%emt 0:01:28]} Nc6 {[%emt 0:00:43]} 13. Nxc6 {[%emt 0:04:45] [#]} Qxc6 $146 {[%emt 0:00:46]} ({Predecessor:} 13... bxc6 14. Rae1 Qb6+ 15. Kh1 d5 16. b3 Bd7 17. Qe7 Rfe8 18. Qd6 Rxe1 19. Rxe1 Ng4 {½-½ (42) Moewisch,D (2026)-Jetzl,J (1727) Innsbruck 2021}) 14. Kh1 {[%emt 0:18:41] Active counter play!} d5 {[%emt 0:10:22]} 15. Rae1 {[%emt 0:22:14]} Bd7 {[%emt 0:06:40]} 16. Qf3 {[%emt 0:05:42]} Rae8 {[%emt 0:22:19]} 17. Rxe8 {[%emt 0:00:58]} Bxe8 {[%emt 0:00:10]} 18. Nb3 {[%emt 0:06:15]} Bd7 {[%emt 0:09:01]} 19. Nd4 {[%emt 0:03:55]} Qd6 {[%emt 0:00:07][%cal Of6e4]} 20. c3 {[%emt 0:02:43]} Ne4 {[%emt 0:15:12]} 21. Bxe4 {[%emt 0:03:42]} dxe4 {[%emt 0:03:39]} 22. Qxe4 {[%emt 0:00:08]} Bxd4 {[%emt 0:00:20]} 23. cxd4 {[%emt 0:04:59]} Bxf5 {[%emt 0:02:06]} 24. Qxb7 {[%emt 0:00:41]} Rb8 {[%emt 0:01:00]} 25. Qf3 {[%emt 0:05:09] Strongly threatening Bf4.} Rxb2 {[%emt 0:00:30]} 26. Bh6 {[%emt 0:00:42]} f6 {[%emt 0:05:29]} 27. h3 {[%emt 0:01:29]} Kf7 {[%emt 0:01:16]} 28. Qc3 {[%emt 0:03:43]} Rxa2 {[%emt 0:07:16]} (28... Rb5 $142) 29. Qb3+ $11 {[%emt 0:02:00]} Be6 {[%emt 0:00:33]} (29... Qe6 $1 $11 {keeps the balance.} 30. d5 Qe2 31. d6+ Qe6) 30. Qb7+ $16 {[%emt 0:00:20][%mdl 1024] White has strong compensation.} Qd7 {[%emt 0:00:26]} (30... Qe7 $2 31. Rxf6+ $3 {[%mdl 512]} Kxf6 32. Bg5+ $1 {[%mdl 512]} Kxg5 33. Qxe7+ Kf5 34. g4+ Kf4 35. Qxe6 $18) (30... Bd7 $16) 31. Qb4 $2 {[%emt 0:00:44]} ({White has to play} 31. Qb8 $1 $18 {[%csl Gh6][%cal Rb8f8]} Qc8 32. Qd6) 31... Qd8 $11 {[%emt 0:03:13] And now ...Bd5 would win.} (31... Qe7 $2 {[#]} 32. Rxf6+ $3 {[%mdl 512]} Kxf6 33. Bg5+ $1 {[%mdl 512]} Kxg5 34. Qxe7+ Kf5 35. g4+ Kf4 36. Qxe6 $18) 32. Bg5 {[%emt 0:00:30]} Bf5 $2 {[%emt 0:00:36][%mdl 8192]} ({Resist} 32... Qa8 33. Rf3 a5 34. Qd6 Qxf3 35. gxf3 $16) (32... Kg8 $11 33. Bxf6 Qa8) 33. Qb3+ $18 {[%emt 0:01:04]} ({Stronger than} 33. Qb7+ Qe7 34. Qb3+ Qe6 $11) 33... Be6 $2 {[%emt 0:02:04]} (33... Kg7 $18 34. Bxf6+ Qxf6 35. Qxa2 Qxd4 36. Qxa6 Bd3 37. Qb7+ Kh6) 34. Rxf6+ {[%emt 0:01:00] Weighted Error Value: White=0.14 (very precise) /Black=0.66} 1-0

[Event "93rd German Championship 2022"]
[Site "Magdeburg"]
[Date "2022.08.16"]
[Round "4.21"]
[White "Pajeken, Jakob Leon"]
[Black "Eichstaedt, Mirko"]
[Result "1-0"]
[ECO "C77"]
[WhiteElo "2457"]
[BlackElo "2223"]
[Annotator "TA"]
[PlyCount "71"]
[EventDate "2022.08.14"]
[EventType "swiss"]
[EventCountry "GER"]
[SourceTitle "playchess.com"]
[Source "ChessBase"]
[SourceQuality "1"]
[TimeControl "40/5400+30:1800+30"]

{[%evp 13,71,2,6,3,11,0,44,16,41,44,81,66,155,148,152,153,162,146,133,122,132,118,127,116,153,151,151,146,168,147,174,181,174,178,174,168,167,172,279,264,312,322,298,306,275,249,265,263,313,305,718,712,854,854,854,854,849,827,1535,1507]} 1. e4 e5 2. Nf3 Nc6 3. Bb5 a6 4. Ba4 Nf6 5. Nc3 Bb4 6. O-O O-O 7. d3 d6 8. Ne2 {C77: Ruy Lopez: 3...a6 4 Ba4 Nf6, unusual lines.} b5 9. Bb3 Bg4 {[#]} 10. c3 $146 {White is slightly better.} ({Predecessor:} 10. Ng3 a5 11. c3 Bc5 12. h3 a4 13. Bc2 Bxf3 14. Qxf3 b4 15. a3 b3 16. Bd1 {1-0 (40) Zachary,M (2325)-Lomandong,M (2121) Mamaia 2017}) 10... Ba5 11. Ng3 b4 12. Bg5 h6 (12... bxc3 $14 13. bxc3 (13. Rc1 Bxf3 14. gxf3 c2 $11) 13... Rb8) 13. Bxf6 $16 Qxf6 14. Bd5 Ne7 15. Bxa8 Rxa8 16. Qa4 Bb6 {[#]} 17. Nd2 (17. Qxb4 $6 Bxf3 18. gxf3 Qxf3 $11) (17. cxb4 $6 h5 $11) 17... h5 18. Nc4 (18. cxb4 $6 h4 $11) 18... h4 19. Nxb6 cxb6 20. h3 (20. Qxb4 hxg3 21. fxg3 Qe6 $16) 20... Be6 21. Nf5 (21. Qxb4 $6 hxg3 22. fxg3 Qg5 $11) 21... Nxf5 22. exf5 Bxf5 23. Qxb4 d5 24. Rad1 Re8 25. Rfe1 {[%cal Bf1e1,Be1e2,Be2g2][%mdl 32]} Qg5 (25... Re6 $142 26. Qb3 Qd8) 26. f4 (26. Qxb6 $2 Bxh3 27. g3 hxg3 $19) 26... Qg3 {Strongly threatening ...Bxh3.} 27. Qxb6 Qxf4 28. Qc6 (28. Qxa6 Bxh3 29. Re2 (29. gxh3 $2 Qg3+ 30. Kf1 Qxh3+ 31. Kf2 Qh2+ 32. Kf3 Re6 $19) (29. Qb5 Re6 $11) 29... Bg4 $16) 28... Rd8 29. Qc7 ({Don't take} 29. Qxa6 $6 Bxh3 30. Qb6 (30. gxh3 Qg3+ 31. Kh1 Qf3+ 32. Kh2 Qg3+ 33. Kh1 Qf3+ 34. Kh2 Qg3+ 35. Kh1 $11) 30... Re8 $18) 29... Re8 30. Re2 ({Don't do} 30. Rf1 $6 Qg5 31. Rf2 Qg6 $18) 30... f6 31. Qd6 Bxh3 $2 (31... Kh7 32. Qxd5 Qg5) 32. gxh3 $18 {White is clearly winning.} Qg3+ 33. Rg2 Qe3+ 34. Kh2 {Qd7 is the strong threat.} Qf4+ {[#]} 35. Kh1 $1 {And now Qd7 would win.} Qf3 {[#]} 36. Qd7 $1 {White took control after the opening.  Weighted Error Value: White=0.04 (flawless) /Black=0.30} 1-0

[Event "93rd German Championship 2022"]
[Site "Magdeburg"]
[Date "2022.08.17"]
[Round "5.1"]
[White "Schulz, Lukas"]
[Black "Krastev, Alexander"]
[Result "0-1"]
[ECO "B20"]
[WhiteElo "2272"]
[BlackElo "2435"]
[Annotator "TA"]
[PlyCount "62"]
[EventDate "2022.08.14"]
[EventType "swiss"]
[EventCountry "GER"]
[SourceTitle "playchess.com"]
[Source "ChessBase"]
[SourceQuality "1"]
[TimeControl "40/5400+30:1800+30"]

{[%evp 14,62,-22,-24,-12,-32,-46,-37,-36,-29,-16,-42,-50,-51,-45,-47,-32,-29,-33,-53,0,-64,-49,-43,-13,-26,-7,0,-7,-57,-49,-51,-32,-85,-54,-52,-41,-79,-46,-63,-76,-152,-147,-226,-179,-179,-160,-342,-25,-667,-651]} 1. e4 {[%emt 0:00:03]} c5 {[%emt 0:07:39]} 2. Be2 {[%emt 0:00:33]} Nc6 {[%emt 0:01:17]} 3. f4 {[%emt 0:00:27]} g6 {[%emt 0:02:29]} 4. Nf3 {[%emt 0:00:22]} Bg7 {[%emt 0:00:05]} 5. O-O {[%emt 0:00:07]} d6 {[%emt 0:01:16]} 6. Nc3 {[%emt 0:05:22]} e6 {[%emt 0:00:27]} 7. d3 {[%emt 0:02:19]} Nge7 {[%emt 0:00:19]} 8. Qe1 {[%emt 0:01:13]} O-O {[%emt 0:01:30] B23: Closed Sicilian: Lines without g3.} 9. Qh4 {[%emt 0:11:53]} Nd4 {[%emt 0:01:39]} 10. Nxd4 {[%emt 0:11:31]} (10. Ng5 $2 h6 11. Nf3 Nxc2 $17) 10... cxd4 {[%emt 0:00:17] Black is slightly better.} 11. Nd1 {[%emt 0:07:06]} Bd7 {[%emt 0:01:22] [#]} 12. Nf2 $146 {[%emt 0:03:38]} ({Predecessor:} 12. Bd2 Rc8 13. c4 dxc3 14. Bxc3 f5 15. Bxg7 Kxg7 16. Ne3 Qb6 17. Qf2 fxe4 18. dxe4 {0-1 (63) Rotstein,J (2372)-Jankovic,A (2571) Neustadt an der Weinstrasse 2009}) 12... Rc8 {[%emt 0:01:49]} 13. Bd1 {[%emt 0:02:45]} f5 {[%emt 0:16:46]} 14. Bd2 {[%emt 0:07:39]} Bf6 {[%emt 0:01:14]} 15. Qh3 {[%emt 0:03:39]} Qb6 {[%emt 0:01:17]} 16. Rb1 {[%emt 0:08:33]} h5 {[%emt 0:04:31]} (16... Bg7 $15) 17. g3 {[%emt 0:04:52]} ({White should try} 17. Re1 $11) 17... Bg7 {[%emt 0:18:17] Black is more active.} 18. Qg2 {[%emt 0:01:24]} Rc5 {[%emt 0:08:51]} 19. b3 {[%emt 0:05:46]} Rfc8 {[%emt 0:01:04]} 20. Rc1 {[%emt 0:00:10]} R5c7 {[%emt 0:02:09]} 21. h3 {[%emt 0:03:18]} (21. a4 $11) 21... fxe4 $15 {[%emt 0:06:13]} 22. dxe4 {[%emt 0:02:06]} d5 $1 {[%emt 0:01:25]} 23. Kh2 {[%emt 0:01:10]} (23. Re1 $1 $15) 23... dxe4 {[%emt 0:03:19]} 24. Nxe4 {[%emt 0:00:09]} Bc6 $36 {[%emt 0:01:38][%mdl 2048] Black fights for an advantage.} 25. Re1 {[%emt 0:04:33]} Bd5 {[%emt 0:04:45]} 26. g4 {[%emt 0:01:07]} hxg4 {[%emt 0:00:10]} 27. hxg4 {[%emt 0:00:18] [#]} (27. Qxg4 $142 e5 28. Qe2) 27... g5 $1 $17 {[%emt 0:04:07] Threatens to win with ...gxf4.} 28. Qh3 {[%emt 0:10:19]} (28. Be2 $17) 28... Bxe4 {[%emt 0:00:22] Dancing on a razor blade.} 29. Rxe4 {[%emt 0:00:05]} gxf4 {[%emt 0:00:20]} 30. Bxf4 $2 {[%emt 0:00:52]} (30. Kg2 $17) 30... e5 $2 {[%emt 0:04:00]} ({Better is} 30... Rc3 $19 31. Qg2 d3) 31. Bg5 $2 {[%emt 0:00:55][%mdl 8192] [#]} ({Don't go for} 31. Bxe5 $2 Bxe5+ 32. Rxe5 Qd6 $19) (31. Bd2 $11) 31... Qg6 $1 {[%emt 0:00:26][%csl LRe4,LRg5] Weighted Error Value: White=0.53/Black=0.32} 0-1

[Event "93rd German Championship 2022"]
[Site "Magdeburg"]
[Date "2022.08.17"]
[Round "5.2"]
[White "Parvanyan, Ashot"]
[Black "Braun, Georg"]
[Result "1/2-1/2"]
[ECO "B12"]
[WhiteElo "2428"]
[BlackElo "2398"]
[Annotator "TA"]
[PlyCount "75"]
[EventDate "2022.08.14"]
[EventType "swiss"]
[EventCountry "GER"]
[SourceTitle "playchess.com"]
[Source "ChessBase"]
[SourceQuality "1"]
[TimeControl "40/5400+30:1800+30"]

{[%evp 12,75,16,5,11,13,33,10,75,22,30,39,25,15,18,-28,0,0,34,13,20,0,0,-9,-20,-37,-50,-65,-77,-103,-109,-118,-90,-145,-113,-103,-75,-74,-43,-48,-47,-66,-54,-46,-48,-43,-54,-87,-90,-89,-102,-75,-78,-153,-75,-83,-83,-87,-66,-70,0,-89,0,-70,0,-103]} 1. e4 {[%emt 0:00:06]} c6 {[%emt 0:00:20]} 2. d4 {[%emt 0:00:28]} d5 {[%emt 0:00:11]} 3. e5 {[%emt 0:00:10]} Bf5 {[%emt 0:00:10]} 4. h4 {[%emt 0:00:17]} h6 {[%emt 0:02:23]} 5. g4 {[%emt 0:00:57]} Bd7 {[%emt 0:00:09]} 6. h5 {[%emt 0:05:40]} e6 {[%emt 0:08:08] 6...c5 is the hot move.} 7. f4 {[%emt 0:14:57]} c5 {[%emt 0:00:58] B12: Caro-Kann: Advance Variation.} 8. c3 {[%emt 0:00:22]} Qb6 {[%emt 0:05:32]} 9. Nf3 {[%emt 0:05:03]} Bb5 {[%emt 0:08:14] [#]} (9... Nc6 $11) 10. Kf2 $146 {[%emt 0:00:53]} (10. dxc5 $16 Bxc5 11. Bxb5+ Qxb5 12. b4) ({Predecessor:} 10. Bh3 Nc6 11. a3 Rc8 12. Be3 Ba6 13. b4 cxb4 14. axb4 Be7 15. Kf2 Bd8 16. Na3 {1-0 (41) Onischuk,V (2608)-Bogdanovich,S (2596) Lvov 2017}) 10... Bxf1 $11 {[%emt 0:00:42]} 11. Rxf1 {[%emt 0:00:03]} (11. Kxf1 {feels hotter.} Nc6 12. Qd3 Rc8 13. dxc5 Bxc5 14. Nbd2) 11... Nd7 {[%emt 0:01:33]} 12. Kg2 {[%emt 0:04:58]} (12. Qb3 {is more complex.} Qc7 13. Be3 Ne7 14. Nbd2) 12... Ne7 {[%emt 0:04:16]} 13. Rf2 {[%emt 0:05:02]} (13. Na3 {is more appropriate.}) 13... cxd4 {[%emt 0:08:15]} (13... g6 $11) 14. cxd4 $14 {[%emt 0:01:47]} g6 {[%emt 0:00:51]} 15. hxg6 {[%emt 0:12:13]} fxg6 {[%emt 0:00:07]} 16. Nc3 {[%emt 0:00:31]} h5 {[%emt 0:02:38]} 17. g5 {[%emt 0:03:24]} Nf5 {[%emt 0:07:30] Against Nh4} 18. Qd3 {[%emt 0:00:39]} Nb8 {[%emt 0:06:13]} 19. Na4 {[%emt 0:14:09]} Qa6 {[%emt 0:02:13]} 20. Qd1 {[%emt 0:08:33]} Nc6 {[%emt 0:01:44]} 21. a3 {[%emt 0:01:13]} Rh7 {[%emt 0:11:17]} 22. Kh3 {[%emt 0:05:18]} ({White should try} 22. Rb1) 22... b5 {[%emt 0:05:40]} 23. Nc3 {[%emt 0:00:52]} Rb8 {[%emt 0:02:30]} 24. Ne2 {[%emt 0:02:27]} Qb6 {[%emt 0:05:19]} 25. b3 {[%emt 0:00:07]} Rc7 {[%emt 0:00:40]} 26. Bb2 {[%emt 0:00:14]} Nce7 {[%emt 0:01:32]} 27. Qd3 {[%emt 0:03:22]} Rbc8 {[%emt 0:01:04]} 28. Nc3 {[%emt 0:00:27]} a6 {[%emt 0:00:24][%cal Ba7a6,Ba6b5][%mdl 32]} 29. a4 {[%emt 0:03:51][%cal Ra4b5]} Nc6 $1 {[%emt 0:02:32] Strongly threatening ...Nb4.} 30. axb5 {[%emt 0:00:37]} Nb4 {[%emt 0:00:16]} (30... Ncxd4 $2 31. Rxa6 Rxc3 32. Qxc3 (32. Rxb6 $2 {too greedy.} Rxd3 33. Bxd4 Nxd4 $19) 32... Rxc3 33. Rxb6 $18) 31. Qd2 {[%emt 0:01:08]} axb5 {[%emt 0:00:20]} 32. Rff1 {[%emt 0:00:21] [#]} ({Better is} 32. Rc1) 32... Nc6 {[%emt 0:00:33]} (32... Nc2 $142 $1 {[%cal Rc2a1][%mdl 512]} 33. Rac1 (33. Qxc2 $2 Bb4 $19) 33... b4) 33. Qd3 {[%emt 0:01:40]} Kf7 {[%emt 0:03:07]} (33... Ncxd4 {[#]} 34. Nxd5 $1 exd5 35. Nxd4 $16) 34. Rfc1 {[%emt 0:02:45]} (34. Qxb5 $2 Qxb5 35. Nxb5 Rb7 36. Nd6+ Bxd6 37. exd6 Rxb3) ({But not} 34. Nxb5 $2 Nb4 35. Nd6+ Bxd6 $19) 34... Rb8 {[%emt 0:03:07]} 35. Ne2 {[%emt 0:01:24]} Rbc8 {[%emt 0:01:09]} 36. Nc3 $1 {[%emt 0:01:58]} Rb8 {[%emt 0:00:17]} 37. Ne2 {[%emt 0:00:04]} Rbc8 {[%emt 0:02:02]} 38. Nc3 {Weighted Error Value: White=0.14 (very precise) /Black=0.18 (very precise)} 1/2-1/2

[Event "93rd German Championship 2022"]
[Site "Magdeburg"]
[Date "2022.08.17"]
[Round "5.3"]
[White "Krassowizkij, Jaroslaw"]
[Black "Poetsch, Hagen"]
[Result "1/2-1/2"]
[ECO "E10"]
[WhiteElo "2428"]
[BlackElo "2500"]
[Annotator "TA"]
[PlyCount "80"]
[EventDate "2022.08.14"]
[EventType "swiss"]
[EventCountry "GER"]
[SourceTitle "playchess.com"]
[Source "ChessBase"]
[SourceQuality "1"]
[TimeControl "40/5400+30:1800+30"]

{[%evp 15,80,-12,-22,-8,-11,-12,-8,-14,-1,-25,-26,-19,-15,-38,-27,-40,-25,-36,0,-4,0,0,0,-34,-33,-34,-4,0,0,-8,0,0,0,0,0,-13,-4,-13,-14,-9,-14,-14,-14,-14,-14,-14,-16,-15,-15,-15,-14,-14,-6,-9,-9,-10,-10,-14,-14,-14,0,0,0,0,0,0,0]} 1. d4 {[%emt 0:00:51]} Nf6 {[%emt 0:01:01]} 2. c4 {[%emt 0:00:04]} e6 {[%emt 0:00:10]} 3. Nf3 {[%emt 0:00:04]} d5 {[%emt 0:03:01]} 4. g3 {[%emt 0:00:23]} dxc4 {[%emt 0:02:23]} 5. Qa4+ {[%emt 0:00:12]} Nbd7 {[%emt 0:00:34]} 6. Bg2 {[%emt 0:00:15]} a6 {[%emt 0:01:51]} 7. Qxc4 {[%emt 0:00:05]} b5 {[%emt 0:01:56]} 8. Qc6 {[%emt 0:00:30]} Ra7 {[%emt 0:00:26]} ({But not} 8... Bb4+ 9. Bd2 Bxd2+ 10. Nbxd2 $14) 9. Be3 {[%emt 0:11:59] E03: Open Catalan: 5 Qa4+ Nbd7 6 Qxc4.} Bb4+ {[%emt 0:05:03] [#]} 10. Bd2 $146 {[%emt 0:02:02]} ({Predecessor:} 10. Nbd2 Bb7 11. Qc2 Be4 12. Qb3 c5 13. dxc5 Bxc5 14. Nxe4 Nxe4 15. O-O Qb6 16. Bxc5 Nexc5 {½-½ (45) Mirzoev,A (2476)-Abdurakhmanov,M (2308) Pune 2022}) 10... Bd6 {[%emt 0:03:29]} 11. O-O {[%emt 0:03:23]} O-O {[%emt 0:02:07]} 12. Rd1 {[%emt 0:08:21]} Bb7 {[%emt 0:01:53]} 13. Qc1 {[%emt 0:00:05]} Qa8 {[%emt 0:16:17]} 14. Bf4 {[%emt 0:03:15]} Rc8 {[%emt 0:02:25]} 15. a3 {[%emt 0:21:32]} Be7 {[%emt 0:08:52]} 16. b4 {[%emt 0:01:44] Prevents c5.} a5 {[%emt 0:03:00]} 17. Nc3 {[%emt 0:01:22]} c6 {[%emt 0:07:13]} 18. Qb2 {[%emt 0:02:07]} Nd5 {[%emt 0:03:31]} 19. Nxd5 {[%emt 0:03:42]} (19. Bd2 $5 {[%cal Rc3d5]}) 19... cxd5 {[%emt 0:00:06]} 20. Bd2 {[%emt 0:02:29]} Nb6 {[%emt 0:06:58] next ...Nc4 is good for Black.} 21. bxa5 {[%emt 0:12:23] The position is equal.} Nc4 {[%emt 0:00:06][%csl LRa5,LRb2]} 22. Qxb5 {[%emt 0:00:30]} Bc6 {[%emt 0:09:34]} 23. Qb3 {[%emt 0:02:14]} Nxa5 {[%emt 0:03:28]} 24. Bxa5 {[%emt 0:02:04]} Rxa5 {[%emt 0:00:05]} 25. Rdc1 {[%emt 0:04:06]} Rxa3 {[%emt 0:04:59]} 26. Rxa3 {[%emt 0:00:08]} Qxa3 {[%emt 0:00:08]} 27. Qxa3 {[%emt 0:00:05]} Bxa3 {[%emt 0:00:06]} 28. Rc2 {[%emt 0:00:07]} f6 {[%emt 0:00:45]} 29. Bh3 {[%emt 0:04:50]} Bd7 {[%emt 0:01:36] A strong pair of Bishops.} 30. Rxc8+ {[%emt 0:00:04]} Bxc8 $11 {[%emt 0:00:05][%mdl 4096] Endgame KBB-KBN} 31. Ne1 {[%emt 0:01:14]} Kf7 {[%emt 0:00:22]} 32. f4 {[%emt 0:00:31]} Ba6 {[%emt 0:01:38]} 33. e3 {[%emt 0:00:21]} Bb2 {[%emt 0:02:46]} 34. Kf2 {[%emt 0:01:31]} e5 {[%emt 0:00:46]} 35. fxe5 {[%emt 0:00:42]} fxe5 {[%emt 0:00:06]} 36. dxe5 {[%emt 0:00:04]} Bxe5 {[%emt 0:00:40]} 37. Bf1 {[%emt 0:02:01]} Bxf1 {[%emt 0:00:33]} 38. Kxf1 {[%emt 0:00:06]} Ke6 {[%emt 0:00:20]} 39. Kf2 {[%emt 0:01:06]} Kf5 {[%emt 0:03:20]} 40. Kf3 {[%emt 0:00:08]} h5 {[%emt 0:00:29] Weighted Error Value: White=0.04 (flawless) /Black=0.06 (flawless)} 1/2-1/2